bitfinex/quotes_ETHUSD_20251017
["timestamp","ask_amount","ask_price","bid_price","bid_amount"]
[1760690763815,13.12586006,3730.6,3730.5,0.001]
[1760690764515,14.43235106,3730.6,3730.5,0.001]
[1760690764823,23.5107934,3730.2,3730.1,0.001]
[1760690765114,48.56847473,3730.2,3730.1,0.001]
[1760690765323,49.00297473,3730.2,3730.1,0.001]
[1760690765495,49.00297473,3730.2,3729.7,0.001]
[1760690765496,22.5516029,3729.8,3729.7,0.001]
[1760690765692,12.1686099,3729.8,3729.7,0.001]
[1760690766038,0.6336,3729.5,3727.5,0.159]
[1760690766191,1.728,3728.4,3727.5,0.159]
[1760690766388,1.728,3728.2,3726.7,2.68333542]
[1760690766721,1.728,3728.2,3726.8,2.84226132]
[1760690767018,0.42082742,3728.0,3727.0,0.50041613]
[1760690767220,0.42082742,3728.0,3727.0,0.1549]
[1760690767391,1.728,3727.8,3726.8,0.159]
[1760690768091,0.42089614,3727.6,3726.8,0.159]
[1760690768293,0.4676643,3727.6,3726.8,0.159]
[1760690768687,2.1956643,3727.6,3726.4,0.159]
[1760690768892,0.9195643,3727.6,3726.4,0.44326063]
[1760690769298,0.6336,3727.5,3726.1,0.159]
[1760690769497,0.6336,3727.3,3726.1,0.159]
[1760690769819,1.728,3727.0,3725.9,0.1562]
[1760690770001,3.31651031,3727.3,3725.9,0.1562]
[1760690770002,1.728,3726.8,3725.9,0.1562]
[1760690771297,0.04677465,3726.6,3725.9,0.1562]
[1760690771706,29.92266937,3726.5,3725.0,0.1562]
[1760690771939,0.2313,3726.4,3725.0,0.1562]
[1760690772238,3.0733,3726.4,3725.0,0.1562]
[1760690772454,0.42103628,3726.1,3725.0,0.1562]
[1760690772653,1.728,3725.9,3724.3,2.68504169]
[1760690772835,1.728,3725.7,3724.4,0.77260417]
[1760690773042,1.728,3725.7,3724.4,0.458]
[1760690773245,0.6336,3725.6,3723.8,1.00295285]
[1760690773466,0.46781685,3726.1,3724.1,0.4878449]
[1760690773750,0.4519,3726.9,3724.2,4.894586]
[1760690773918,0.42108489,3726.3,3724.4,3.31859624]
[1760690774106,0.42108489,3726.3,3726.1,2.6837582]
[1760690774341,30.15396937,3727.1,3725.0,0.1571]
[1760690774553,29.92266937,3726.4,3725.0,0.1571]
[1760690774718,0.1336,3725.0,3724.4,0.458]
[1760690774907,2.843,3724.9,3724.8,2.68464746]
[1760690775109,2.843,3724.9,3724.7,2.68471886]
[1760690775322,2.843,3724.9,3724.8,3.1427079]
[1760690775566,2.843,3724.9,3724.7,0.31427189]
[1760690775771,0.1336,3725.0,3724.8,0.458]
[1760690775923,0.1336,3725.0,3724.9,3.14263582]
[1760690776122,0.42108247,3725.6,3725.4,2.68422278]
[1760690776349,0.4519,3726.5,3724.0,0.1579]
[1760690776350,1.728,3726.3,3724.0,0.1579]
[1760690776555,0.4519,3727.0,3725.5,0.6151]
[1760690776860,0.04678492,3726.4,3726.3,2.68362719]
[1760690777168,2.843,3726.4,3726.3,2.68362719]
[1760690777467,0.4210123,3726.8,3726.5,2.68343274]
[1760690777633,0.0467755,3727.4,3726.4,0.6151]
[1760690777837,0.0467755,3727.4,3727.3,2.83780719]
[1760690778032,2.843,3727.4,3727.3,3.12158791]
[1760690778254,0.04676605,3728.2,3727.4,4.269688]
[1760690778566,0.04676605,3728.2,3728.1,2.83943148]
[1760690778734,29.92266937,3730.8,3728.1,0.18392331]
[1760690778982,0.2313,3732.3,3728.1,0.18392331]
[1760690778983,0.04674903,3730.0,3728.2,0.458]
[1760690779152,29.92266937,3729.8,3727.5,0.458]
[1760690779351,2.68154027,3729.2,3727.3,0.1549]
[1760690779584,1.728,3729.0,3727.3,0.1549]
[1760690779791,1.728,3729.0,3726.8,2.68326556]
[1760690779792,1.728,3728.4,3727.1,2.83794521]
[1760690780004,2.843,3728.3,3727.2,0.28379452]
[1760690780150,2.88976128,3728.3,3727.1,0.6129]
[1760690780347,0.04676128,3728.3,3728.0,2.68235426]
[1760690780562,2.843,3728.2,3728.1,0.6151]
[1760690780760,2.843,3728.2,3728.1,3.2973981]
[1760690781051,2.843,3728.2,3727.8,0.1571]
[1760690781287,2.843,3728.2,3727.1,0.1549]
[1760690781591,0.49435584,3729.0,3728.1,0.1571]
[1760690781592,0.04675584,3729.0,3728.1,0.1571]
[1760690781751,2.843,3729.8,3728.3,0.6336]
[1760690781951,2.843,3729.8,3729.7,0.1571]
[1760690782588,2.843,3729.8,3729.7,2.83828079]
[1760690782886,0.42057879,3730.8,3729.7,0.6045]
[1760690783202,0.41977879,3730.8,3729.7,0.6045]
[1760690783852,1.728,3730.6,3729.7,0.1571]
[1760690784179,0.41977879,3730.8,3729.3,29.92266937]
[1760690784354,0.1756,3731.3,3730.0,2.6809104]
[1760690784355,1.054,3731.0,3730.0,2.6809104]
[1760690784554,1.054,3731.0,3729.9,0.2195]
[1760690784754,1.054,3731.0,3729.6,2.6812012]
[1760690784755,0.0998,3730.9,3729.6,2.6812012]
[1760690784956,2.78013471,3730.9,3729.4,2.68133422]
[1760690785152,1.728,3730.3,3729.2,0.2195]
[1760690785382,0.0998,3730.8,3729.3,0.4474]
[1760690785383,2.842,3730.2,3729.3,0.4474]
[1760690785555,2.842,3730.1,3729.3,0.4474]
[1760690785764,0.42050538,3731.4,3729.4,2.70821043]
[1760690785970,0.5663,3731.3,3729.5,0.78491104]
[1760690786164,0.1336,3730.6,3730.0,0.1336]
[1760690786355,1.172,3730.5,3730.4,2.68067767]
[1760690786557,1.172,3730.5,3730.1,3.12828107]
[1760690786759,1.172,3730.5,3730.0,0.1336]
[1760690786953,0.1336,3730.4,3729.8,0.1336]
[1760690787200,0.1336,3729.9,3729.2,0.3531]
[1760690787367,2.0036,3730.3,3729.6,0.581]
[1760690787553,0.127,3730.2,3729.6,0.1336]
[1760690787960,2.393,3730.5,3730.4,2.68060699]
[1760690788255,2.842,3730.5,3730.1,2.68089327]
[1760690788481,2.842,3730.5,3730.1,0.4474]
[1760690788688,2.842,3730.5,3730.0,0.1336]
[1760690788852,0.1336,3730.4,3730.0,2.68095007]
[1760690789059,0.1336,3730.4,3730.3,2.68074953]
[1760690789263,0.1336,3730.4,3730.1,0.4474]
[1760690789460,2.842,3730.5,3729.1,3.12895745]
[1760690789691,2.842,3730.5,3729.5,0.1336]
[1760690789692,0.1336,3730.1,3729.5,0.1336]
[1760690789870,0.1336,3730.1,3729.9,2.68097801]
[1760690790067,0.04673915,3730.8,3730.1,2.68089327]
[1760690790068,0.1336,3730.4,3730.1,2.68089327]
[1760690790267,1.0556,3730.4,3729.8,0.1336]
[1760690790494,0.922,3730.4,3729.2,0.6669]
[1760690790698,0.1336,3730.1,3729.6,2.68120506]
[1760690790884,0.1336,3730.1,3729.5,0.1336]
[1760690791393,2.68152573,3729.3,3727.5,0.4474]
[1760690791594,1.7201,3729.2,3727.8,0.2195]
[1760690791802,0.1011,3729.1,3727.3,0.2195]
[1760690791961,1.619,3729.2,3727.3,0.2195]
[1760690791962,0.42073357,3728.9,3727.3,0.2195]
[1760690792171,0.3305,3728.8,3726.7,2.90279014]
[1760690792410,0.3305,3728.8,3726.8,0.29027901]
[1760690792578,0.04676377,3728.3,3726.7,0.2195]
[1760690792781,2.68240343,3728.0,3726.0,0.2195]
[1760690792987,2.68254734,3727.8,3726.2,2.68369703]
[1760690793188,2.68295837,3727.3,3726.0,0.2195]
[1760690793367,2.841,3727.2,3726.2,2.68365957]
[1760690793576,2.841,3727.2,3726.3,2.97391813]
[1760690793907,0.46768254,3727.6,3726.4,0.4474]
[1760690794117,2.841,3727.3,3727.1,0.2195]
[1760690794321,2.841,3727.5,3727.2,0.4474]
[1760690794884,1.9587,3728.8,3727.3,0.4474]
[1760690795187,1.9587,3728.8,3726.4,0.00828415]
[1760690795188,1.728,3728.6,3726.6,0.4474]
[1760690795386,1.728,3728.6,3726.1,0.4474]
[1760690795586,0.6336,3728.4,3726.1,0.4474]
[1760690795791,0.1013,3728.3,3726.1,0.4474]
[1760690796017,1.728,3728.1,3726.1,0.4474]
[1760690796192,1.728,3728.1,3726.7,2.6832878]
[1760690796388,1.728,3728.1,3726.5,0.4474]
[1760690796719,0.42088347,3727.8,3726.5,0.4474]
[1760690797022,0.1741,3727.7,3726.8,2.68323485]
[1760690797222,0.1741,3727.7,3726.1,0.4474]
[1760690797420,0.102,3727.6,3726.0,0.2195]
[1760690797627,2.68321572,3726.9,3725.6,0.6669]
[1760690797826,2.842,3726.8,3725.7,0.33510818]
[1760690798405,0.228,3725.8,3724.4,0.4474]
[1760690798690,2.0069,3726.7,3724.4,0.4474]
[1760690798691,2.842,3725.7,3724.4,0.4474]
[1760690798889,0.216,3725.6,3725.3,2.68429206]
[1760690799100,0.216,3725.6,3725.5,2.68420346]
[1760690799319,2.842,3726.0,3725.5,2.97456687]
[1760690799497,2.842,3726.0,3725.8,2.68398514]
[1760690799701,2.842,3726.0,3725.9,2.68391529]
[1760690799898,0.2255,3727.0,3725.9,0.4474]
[1760690800090,2.842,3726.6,3726.5,2.68348316]
[1760690800290,2.88878027,3727.1,3726.8,2.68320678]
[1760690800514,2.88878027,3727.1,3726.5,0.26834832]
[1760690800515,2.88878027,3727.1,3727.0,2.68312315]
[1760690800940,0.42091455,3728.0,3727.0,0.4474]
[1760690801103,2.842,3728.1,3727.9,2.68247538]
[1760690801292,2.842,3728.1,3728.0,2.68240343]
[1760690801489,2.842,3728.1,3728.0,2.95064377]
[1760690801729,2.842,3728.1,3728.0,3.39804377]
[1760690801928,2.842,3728.1,3728.0,2.95064377]
[1760690802639,2.842,3728.7,3728.6,2.68197178]
[1760690802845,2.842,3728.7,3728.0,0.26824034]
[1760690803136,2.842,3728.7,3727.6,0.4474]
[1760690803495,2.842,3728.7,3728.6,2.68197178]
[1760690803929,2.9418,3728.7,3727.8,2.68254133]
[1760690804236,0.2226,3727.9,3726.4,0.2195]
[1760690804419,2.943,3727.8,3726.4,0.2195]
[1760690804609,0.101,3727.7,3726.9,2.68312937]
[1760690804933,0.04082807,3727.9,3726.9,0.26831294]
[1760690805091,2.842,3727.6,3726.3,0.2169]
[1760690805291,2.842,3727.6,3726.7,2.68333914]
[1760690805508,2.842,3727.6,3727.3,2.6828416]
[1760690805712,2.842,3727.6,3726.3,0.2169]
[1760690805713,2.943,3727.6,3726.9,2.68312961]
[1760690805925,2.943,3727.6,3726.3,0.2169]
[1760690806123,2.943,3727.6,3726.7,2.68332499]
[1760690806436,1.728,3727.5,3726.3,0.35906152]
[1760690806646,0.42091015,3727.4,3726.5,2.68346741]
[1760690806844,0.42011015,3727.4,3727.0,2.68310516]
[1760690807042,0.42011015,3727.4,3726.1,0.4704]
[1760690807342,2.842,3727.3,3726.9,2.6831328]
[1760690807550,2.842,3727.4,3727.3,2.68290719]
[1760690807842,2.842,3727.4,3727.3,3.28822379]
[1760690808198,2.842,3727.4,3727.3,3.75862379]
[1760690808397,2.842,3727.9,3727.3,0.6053166]
[1760690808603,2.842,3727.9,3726.7,0.4704]
[1760690808827,2.842,3727.9,3727.7,2.68254914]
[1760690809034,2.842,3727.9,3727.6,2.68267234]
[1760690809628,2.842,3727.9,3727.8,2.68254734]
[1760690810231,2.842,3727.9,3727.8,3.15294734]
[1760690810432,2.842,3727.9,3727.8,3.73650931]
[1760690810750,2.842,3727.9,3726.5,0.4704]
[1760690810937,2.842,3727.9,3727.6,2.68268769]
[1760690811126,2.842,3727.9,3727.5,2.6827502]
[1760690811326,1.728,3727.8,3726.5,0.4704]
[1760690811636,0.1336,3727.3,3726.6,0.1336]
[1760690811949,2.842,3727.2,3727.1,2.68301551]
[1760690812251,2.842,3727.2,3726.7,0.3287555]
[1760690812252,2.842,3727.2,3726.8,2.68320294]
[1760690812549,0.1336,3727.0,3726.8,0.4653]
[1760690812716,0.04676429,3727.5,3727.4,2.68283522]
[1760690812917,1.769,3727.5,3727.1,2.68300309]
[1760690813221,1.769,3727.5,3726.0,0.2195]
[1760690813421,1.769,3727.5,3726.2,2.68369921]
[1760690813642,1.769,3727.5,3726.9,2.68314515]
[1760690813822,1.769,3727.5,3726.8,2.68321998]
[1760690814017,1.769,3727.5,3726.3,2.68362719]
[1760690814215,2.842,3727.4,3726.4,0.80174363]
[1760690814415,0.42088544,3728.0,3727.6,2.68265232]
[1760690814620,0.1809,3728.8,3727.6,0.4653]
[1760690814868,3.26281647,3728.7,3727.5,0.4653]
[1760690815024,1.728,3728.5,3728.1,2.68228471]
[1760690815352,1.728,3728.5,3727.5,0.4653]
[1760690815353,2.842,3728.6,3727.5,0.4653]
[1760690815555,2.842,3728.6,3727.6,0.33840895]
[1760690815753,2.842,3728.6,3727.9,2.68241646]
[1760690815922,2.842,3728.6,3727.6,0.33840895]
[1760690816123,2.842,3728.6,3727.7,2.68259627]
[1760690816640,2.842,3728.6,3726.6,0.4653]
[1760690816838,2.842,3728.6,3727.5,2.68270993]
[1760690817165,2.88876032,3728.5,3727.9,2.6824663]
[1760690817351,0.42079584,3728.4,3727.4,2.68283522]
[1760690817658,2.88876032,3728.5,3727.5,2.68276324]
[1760690817821,2.88876032,3728.5,3728.1,2.68232277]
[1760690818151,2.88876032,3728.5,3727.5,2.68269242]
[1760690818351,2.88876032,3728.5,3728.1,2.68233113]
[1760690819323,2.88876032,3728.5,3727.7,2.68261438]
[1760690819558,2.88876032,3728.5,3728.1,2.68232156]
[1760690819860,2.88876032,3728.5,3728.1,2.68233124]
[1760690819861,2.842,3728.4,3728.1,2.68233124]
[1760690820165,2.842,3728.3,3728.2,2.68225953]
[1760690820753,2.842,3728.3,3728.1,0.26823312]
[1760690820938,0.0014,3728.2,3726.9,0.236]
[1760690821138,0.0028,3728.1,3726.6,0.001]
[1760690821344,2.68517693,3728.1,3726.8,2.68325506]
[1760690821526,0.04676886,3727.8,3726.7,2.68332973]
[1760690821727,0.1406,3727.7,3726.8,2.68326183]
[1760690821928,2.841,3727.6,3726.6,0.001]
[1760690822153,2.841,3727.6,3726.8,2.6832115]
[1760690822364,2.841,3727.6,3726.7,2.68331383]
[1760690822563,0.42089613,3728.1,3726.8,2.68325212]
[1760690822732,0.04677068,3727.8,3727.2,2.68293801]
[1760690822925,0.04677068,3727.8,3726.8,0.26842521]
[1760690823242,1.209,3728.9,3727.0,2.68312315]
[1760690823243,0.1336,3727.1,3727.0,2.68312315]
[1760690823438,0.1336,3727.1,3727.0,3.11632315]
[1760690823639,2.9746,3727.1,3726.9,2.68318628]
[1760690823845,2.9746,3727.1,3726.7,2.68333914]
[1760690824167,2.9746,3727.1,3727.0,2.68312315]
[1760690824364,2.9746,3727.1,3726.8,2.68321168]
[1760690824533,2.9746,3727.1,3726.9,2.68316717]
[1760690824734,2.9746,3727.1,3726.8,0.28178117]
[1760690825040,0.13398846,3729.7,3726.7,2.68329515]
[1760690825041,0.1336,3726.8,3726.7,2.68329515]
[1760690825252,0.42089325,3727.6,3726.7,2.68329515]
[1760690825253,0.1336,3726.9,3726.8,2.68326714]
[1760690825437,0.6436,3726.9,3726.8,2.68326714]
[1760690825759,2.9746,3726.9,3726.8,3.26334337]
[1760690825953,2.9746,3726.9,3726.8,2.68326714]
[1760690826150,0.1336,3726.9,3726.8,2.68326714]
[1760690826470,0.739,3726.9,3726.8,3.11646714]
[1760690826632,0.739,3726.9,3726.6,0.001]
[1760690826832,0.42089325,3727.6,3726.7,0.4332]
[1760690827035,0.1336,3727.2,3726.8,2.68326714]
[1760690827238,0.002,3728.6,3727.1,0.2313]
[1760690827566,0.42086213,3728.1,3727.1,0.2313]
[1760690827872,0.42086213,3728.1,3727.5,2.68274703]
[1760690828077,0.42086213,3728.1,3727.1,0.2313]
[1760690828260,0.42086213,3728.1,3727.2,2.68295833]
[1760690828461,0.42086213,3728.1,3727.6,2.68264772]
[1760690828661,2.841,3728.0,3727.2,0.60305731]
[1760690828835,2.841,3728.0,3727.7,2.68257127]
[1760690829036,0.42086213,3728.1,3727.3,8.04872157]
[1760690829236,2.198,3728.0,3727.9,2.68247538]
[1760690829437,0.002,3728.6,3727.9,2.68247538]
[1760690829438,0.42279162,3728.6,3728.5,2.68204371]
[1760690829675,2.3,3728.4,3728.3,2.68218759]
[1760690830384,2.3035,3728.4,3727.1,0.2313]
[1760690830673,2.3,3728.4,3727.3,0.02682907]
[1760690830883,0.0012,3728.6,3727.4,0.4332]
[1760690831090,0.0012,3728.6,3728.3,2.68218759]
[1760690831374,0.0012,3728.6,3728.4,2.6820674]
[1760690831932,0.0012,3728.6,3728.5,2.68204371]
[1760690832150,2.8422,3728.6,3728.1,0.2313]
[1760690832355,2.8422,3728.6,3728.2,2.68225953]
[1760690832562,2.8422,3728.6,3728.4,2.68210788]
[1760690832762,2.8422,3728.6,3728.5,2.68204371]
[1760690833265,2.8422,3728.6,3728.1,0.2313]
[1760690833439,2.8422,3728.6,3728.5,2.68204371]
[1760690833831,2.8422,3728.6,3727.6,0.4332]
[1760690834031,2.8422,3728.6,3727.9,2.68247538]
[1760690834238,2.8422,3728.6,3726.8,5.52422695]
[1760690834239,1.7315,3728.5,3726.6,0.001]
[1760690834432,0.6336,3728.4,3726.6,0.001]
[1760690834679,0.1752,3726.7,3726.6,0.001]
[1760690834838,1.9822,3726.7,3726.6,0.001]
[1760690835167,0.1752,3726.7,3726.6,0.001]
[1760690835368,2.841,3726.7,3726.6,0.001]
[1760690835571,0.42098455,3727.3,3726.6,0.4342]
[1760690835755,0.0086,3728.3,3726.7,2.68328636]
[1760690835954,2.841,3728.2,3727.2,0.2313]
[1760690836370,2.841,3728.2,3727.5,2.68275374]
[1760690836666,1.728,3728.1,3727.6,2.68263975]
[1760690836869,1.728,3728.1,3726.8,0.76807864]
[1760690837070,1.728,3728.1,3727.1,2.68299951]
[1760690837273,0.1686,3727.2,3726.1,0.6645]
[1760690837575,0.1336,3727.2,3727.0,2.68312315]
[1760690837771,0.1336,3727.4,3727.3,2.68288255]
[1760690837960,2.1346,3727.4,3727.3,2.68288255]
[1760690838153,2.1346,3727.4,3726.8,0.1336]
[1760690838347,0.1336,3727.4,3726.8,0.1336]
[1760690838547,0.1336,3727.4,3726.5,0.4332]
[1760690838548,0.816,3727.3,3726.6,2.68440842]
[1760690838767,0.816,3727.3,3726.6,2.68438656]
[1760690838961,0.86276977,3727.3,3726.6,0.001]
[1760690839341,0.86276977,3727.3,3726.6,2.68435328]
[1760690839674,0.86276977,3727.3,3726.6,2.68440838]
[1760690839971,0.86276977,3727.3,3726.6,2.68440712]
[1760690840777,0.86276977,3727.3,3726.7,2.68332342]
[1760690840943,0.86276977,3727.3,3726.6,0.001]
[1760690841560,0.04676977,3727.3,3726.7,2.68327304]
[1760690841744,1.68,3727.2,3726.7,0.5367748]
[1760690841951,1.68,3727.2,3726.6,0.001]
[1760690841952,0.42086838,3727.8,3727.1,0.2258]
[1760690842292,0.04796424,3728.6,3727.2,0.452]
[1760690842577,2.84,3727.7,3727.2,0.452]
[1760690842805,2.84,3727.7,3727.6,2.68269127]
[1760690842980,2.84,3727.7,3727.5,2.68274305]
[1760690843150,2.84,3727.7,3727.1,2.68298222]
[1760690843350,0.0012,3728.6,3727.2,0.2258]
[1760690843548,2.84,3727.6,3727.5,2.68276324]
[1760690844160,2.84,3727.6,3727.4,2.68281162]
[1760690844406,2.84,3727.6,3727.5,2.68276324]
[1760690844610,2.84,3727.6,3727.2,2.68297363]
[1760690844768,2.84,3727.6,3726.7,0.452]
[1760690844969,2.84,3727.6,3726.8,0.31363719]
[1760690845166,2.84,3727.6,3726.6,2.684353]
[1760690845486,2.14890709,3727.5,3726.6,0.001]
[1760690845674,0.6336,3727.4,3726.6,0.001]
[1760690845999,1.728,3727.2,3726.6,0.001]
[1760690846173,2.68313292,3727.0,3726.6,0.001]
[1760690846378,1.05450709,3727.5,3726.6,0.001]
[1760690846379,2.87545295,3727.1,3726.6,0.001]
[1760690846578,0.1924,3726.9,3726.6,0.001]
[1760690846899,1.728,3726.7,3726.6,0.001]
[1760690847290,1.827,3726.7,3726.6,0.001]
[1760690848289,2.84,3726.8,3726.6,0.001]
[1760690848290,0.0944,3726.9,3726.6,0.001]
[1760690848490,1.728,3726.7,3726.6,0.001]
[1760690849206,0.0944,3726.9,3726.6,0.001]
[1760690849389,1.728,3726.7,3726.6,0.001]
[1760690849902,4.568,3726.7,3726.6,0.001]
[1760690850106,8.937824,3726.7,3726.6,0.001]
[1760690850402,1.728,3725.4,3723.6,0.452]
[1760690850621,5.52436089,3725.3,3723.9,2.91114306]
[1760690850765,1.641,3725.2,3724.0,2.68826738]
[1760690850976,1.641,3725.2,3724.1,0.62080202]
[1760690851171,0.0468027,3725.1,3724.1,3.36598685]
[1760690851412,0.0468027,3725.1,3724.1,0.6808]
[1760690851616,0.0468027,3725.1,3724.4,2.68497412]
[1760690851773,0.0468027,3725.1,3724.5,2.68491392]
[1760690852085,0.0468027,3725.1,3724.6,2.68484244]
[1760690852404,2.84,3725.0,3724.9,2.68463582]
[1760690852567,2.84,3725.0,3724.6,0.26848424]
[1760690852568,2.84,3725.0,3724.6,2.95332444]
[1760690852890,2.84,3725.0,3723.9,0.2258]
[1760690853090,2.84,3725.0,3724.0,2.68827729]
[1760690853278,1.728,3724.9,3724.1,0.003]
[1760690853809,2.841,3724.8,3724.2,2.68514043]
[1760690854103,2.841,3724.8,3724.2,0.452]
[1760690854308,0.0991,3726.8,3724.2,0.452]
[1760690854607,0.105,3726.0,3725.7,2.68400748]
[1760690854780,0.105,3725.9,3725.2,0.2258]
[1760690854980,0.105,3725.9,3725.2,2.91019771]
[1760690855195,0.1132,3725.8,3724.9,2.68458675]
[1760690855393,0.1132,3725.8,3724.7,2.68474453]
[1760690855593,0.42110643,3726.4,3725.1,2.68447331]
[1760690855594,2.841,3725.7,3725.1,2.68447331]
[1760690855795,2.841,3725.6,3725.1,0.2258]
[1760690855996,2.841,3725.5,3724.8,0.452]
[1760690856379,2.841,3725.5,3724.3,0.33689496]
[1760690856804,2.841,3725.5,3724.2,0.452]
[1760690857003,2.841,3725.5,3724.5,2.68487531]
[1760690857004,0.04679613,3725.4,3724.5,2.68487531]
[1760690857206,2.841,3725.3,3724.6,0.452]
[1760690857380,0.04679613,3725.4,3725.2,0.2258]
[1760690857587,2.841,3725.3,3725.2,0.2258]
[1760690857859,2.841,3725.3,3725.2,3.2012532]
[1760690857982,2.841,3725.3,3725.1,2.68446748]
[1760690858178,2.841,3725.3,3724.9,2.68463582]
[1760690858383,2.841,3725.3,3724.7,2.68476995]
[1760690858605,2.841,3725.3,3724.6,2.68484107]
[1760690858812,2.841,3725.3,3724.7,2.68473028]
[1760690859118,0.1336,3725.1,3724.6,2.68482268]
[1760690859278,0.1336,3725.1,3724.7,2.68476776]
[1760690859478,0.1336,3725.1,3724.1,0.2298]
[1760690859479,2.841,3725.3,3724.1,0.2298]
[1760690859700,0.1336,3724.9,3724.2,0.1336]
[1760690859874,2.841,3725.3,3724.1,0.2298]
[1760690859875,2.841,3725.3,3724.1,0.004]
[1760690860089,0.1336,3724.6,3724.5,2.68492415]
[1760690860295,2.9746,3724.6,3724.5,2.68492415]
[1760690861207,2.841,3724.6,3724.5,3.67392026]
[1760690861583,2.841,3724.6,3724.5,3.80752026]
[1760690863886,2.841,3724.6,3724.5,3.35552271]
[1760690864214,2.841,3724.6,3724.5,2.81852415]
[1760690864982,2.841,3724.6,3724.5,0.1336]
[1760690865205,2.9746,3724.6,3724.1,0.004]
[1760690865610,2.9746,3724.6,3724.1,2.68920184]
[1760690865816,2.9746,3724.6,3724.2,2.68513504]
[1760690866014,0.1336,3724.6,3724.5,2.68492415]
[1760690866324,2.841,3724.6,3724.5,2.68492415]
[1760690866996,2.841,3724.6,3724.1,0.2298]
[1760690867196,2.841,3724.6,3724.1,0.004]
[1760690867694,2.94,3724.6,3724.1,0.004]
[1760690868108,2.841,3724.6,3724.1,0.004]
[1760690869242,0.42121838,3724.8,3724.1,0.2298]
[1760690869430,0.42121838,3724.8,3724.2,0.452]
[1760690869592,1.207,3724.7,3724.2,0.452]
[1760690869797,1.207,3724.7,3724.6,2.68485206]
[1760690870019,2.841,3724.7,3724.6,2.68485206]
[1760690870225,2.841,3724.7,3724.1,0.2298]
[1760690870416,2.841,3724.7,3724.1,0.004]
[1760690870813,2.94,3724.7,3724.1,0.004]
[1760690871124,2.88780289,3724.7,3724.1,0.004]
[1760690871325,2.88780289,3724.7,3724.2,2.6851256]
[1760690871526,2.88780289,3724.7,3724.1,0.004]
[1760690871527,0.04680289,3724.7,3724.1,0.004]
[1760690871733,2.841,3724.6,3724.1,0.004]
[1760690872032,2.841,3724.5,3724.4,2.68499624]
[1760690872618,2.841,3724.5,3724.1,0.004]
[1760690872823,2.841,3724.5,3724.1,2.68920518]
[1760690873242,2.841,3724.5,3724.1,0.004]
[1760690873437,2.841,3724.5,3724.1,2.68919296]
[1760690873841,2.841,3724.5,3724.1,0.004]
[1760690874043,2.94,3724.5,3724.1,0.004]
[1760690875515,2.841,3724.5,3724.1,0.004]
[1760690876139,2.94,3724.5,3724.1,0.004]
[1760690876912,2.841,3724.5,3724.1,0.004]
[1760690877109,0.1336,3724.5,3724.1,0.004]
[1760690877316,0.002,3725.1,3724.2,0.6674]
[1760690877317,0.4212251,3724.8,3724.2,0.6674]
[1760690877509,2.84,3724.7,3724.2,0.801]
[1760690877915,0.5540251,3724.8,3724.2,0.1336]
[1760690878149,0.1336,3724.4,3724.1,0.004]
[1760690878355,0.4204251,3724.8,3724.3,2.68506833]
[1760690878540,0.4204251,3724.8,3724.4,3.54753142]
[1760690878736,0.4204251,3724.8,3724.5,2.68488112]
[1760690878935,0.4204251,3724.8,3724.4,3.54753444]
[1760690879147,0.4204251,3724.8,3724.4,0.42554683]
[1760690879441,2.84,3724.7,3724.5,2.68489824]
[1760690880344,0.002,3725.1,3724.3,2.81866611]
[1760690880345,0.002,3725.1,3724.7,2.68477721]
[1760690880560,2.84,3725.0,3724.8,2.81826221]
[1760690880767,2.84,3725.0,3724.1,0.2344]
[1760690881161,0.002,3725.1,3725.0,2.68456375]
[1760690881332,2.842,3725.1,3725.0,2.68456375]
[1760690881522,2.842,3725.1,3724.2,0.4326]
[1760690881730,2.9756,3725.1,3724.5,0.1336]
[1760690882059,0.002,3725.1,3725.0,2.68456375]
[1760690882256,0.002,3725.1,3724.5,0.32512683]
[1760690882470,0.002,3725.1,3724.5,2.68487714]
[1760690882664,0.002,3725.1,3724.5,2.68487302]
[1760690882870,0.002,3725.1,3724.1,0.2344]
[1760690883167,0.002,3725.1,3725.0,2.68456375]
[1760690883380,2.842,3725.1,3724.4,3.11754331]
[1760690883525,2.842,3725.1,3725.0,2.68456375]
[1760690883725,0.002,3725.1,3725.0,3.11716375]
[1760690883926,0.002,3725.1,3725.0,3.14400938]
[1760690884121,0.002,3725.1,3725.0,3.11716375]
[1760690884375,0.002,3725.1,3724.5,0.74435433]
[1760690884523,0.002,3725.1,3725.0,3.11716375]
[1760690885158,0.002,3725.1,3724.0,2.68825022]
[1760690885456,0.002,3725.1,3725.0,3.11716375]
[1760690886828,0.002,3725.1,3725.0,5.47876375]
[1760690887029,0.42098204,3727.3,3725.2,0.6336]
[1760690887225,0.044,3726.7,3725.6,29.94225991]
[1760690887536,0.044,3726.7,3725.9,2.68391364]
[1760690887866,0.044,3726.7,3726.2,2.68369594]
[1760690888027,2.839,3726.6,3726.0,0.4326]
[1760690888232,2.839,3726.6,3725.9,2.68386069]
[1760690888628,0.112,3726.8,3725.5,2.68420346]
[1760690888829,2.839,3726.7,3725.6,0.39649835]
[1760690889026,0.04678066,3727.0,3726.4,2.68348484]
[1760690889326,2.839,3726.9,3726.5,0.2225]
[1760690889831,2.839,3726.9,3726.6,2.68341115]
[1760690890022,0.04678066,3727.0,3726.5,0.2225]
[1760690890236,2.839,3726.9,3726.8,2.68324416]
[1760690890446,2.839,3726.9,3726.7,2.68331541]
[1760690891232,2.839,3726.9,3726.8,2.68326714]
[1760690891929,2.839,3726.9,3726.5,2.6834815]